Cogmind - Beta 15 @@@ ROGUE MODE // 2025.05.31 @ 12:24:27 Player: PieTheDye Result: Destroyed by G-67 Veteran with Plasma Rifle Performance ------------- Evolutions (7) 3500 Regions Visited (14) 2800 Robots Destroyed (172) 860 Value Destroyed (5960) 5960 Prototype IDs (32) 640 Alien Tech Used (0) 0 Bonus (635) 635 TOTAL SCORE: 14395 Bonus ------- High Alert Combat Kills 249 Follower Combat Kills 86 Aligned with FarCom 300 Cogmind --------- Core Integrity 0/1300 Matter 163/300 Energy 100/100 System Corruption 11% Temperature Cool (12) Movement Core (50) Location -3/Research Parts ------- > --- POWER (2) -------- (None) > --- PROPULSION (6) --- (None) > --- UTILITY (10) ----- Advanced Targeting Computer > --- WEAPON (3) ------- (None) > --- INVENTORY (5) ---- ECM Suite High-powered Tractor Beam Improved Field Recycling Unit (58) KE Penetrator Peak State ------------ > --- POWER ------------ Light Nuclear Core > --- PROPULSION ------- Light Armored Exoskeleton Light Armored Exoskeleton > --- UTILITY ---------- Enhanced Optical Array Advanced Targeting Computer Improved Medium Armor Plating Graphene Brace Advanced Shield Generator Hacking Suite Hacking Suite Hacking Suite > --- WEAPON ----------- Heavy Gatling Laser Enhanced Gauss Cannon Enhanced Gauss Cannon > --- INVENTORY -------- ECM Suite High-powered Tractor Beam Improved Field Recycling Unit Thermic Laser Rocket Launcher [Rating: 73] Favorites ----------- Power Ion Engine Engine Ion Engine Power Core Nuclear Core Reactor Cold Fusion Reactor Propulsion Light Treads Treads Light Treads Leg Light Armored Exoskeleton Wheel Armored Huge Wheel Hover Unit Makeshift Hover Unit Flight Unit Cooled VTOL Module Utility Hacking Suite Device Graphene Brace Storage High-capacity Storage Unit Processor Advanced Targeting Computer Hackware Hacking Suite Protection Improved Medium Armor Plating Weapon Improved Light Cannon Energy Gun Thermic Laser Energy Cannon Matter Neutralizer Ballistic Gun Coil Gun Ballistic Cannon Improved Light Cannon Launcher Precision Grenade Launcher Special Weapon Field Lobotomy Kit Impact Weapon Impact Mace Slashing Weapon Makeshift Sword Build | -11 -10 -10 -10 -9 -8 -7 -7 -7 -6 -5 -4 -4 -4 -3 ------- Run | Yrd Mat Min Exi Min Mat Fac Low Low Fac Fac Fac Upp Upp Res Slots Evolved 14 | . . . . . 4 2 . . 2 2 2 . . 2 Power 1 | . . . . . . . . . . 1 . . . . Propulsion 4 | . . . . . 1 1 . . . . 1 . . 1 Utility 8 | . . . . . 3 1 . . 1 1 1 . . 1 Weapon 1 | . . . . . . . . . 1 . . . . . Parts Attached 132 | 8 5 . . 3 18 25 2 . 32 8 14 12 1 4 Power 17 | 1 . . . . 1 3 . . 5 1 2 2 1 1 Engine 7 | 1 . . . . 1 . . . 4 . 1 . . . Core 7 | . . . . . . 3 . . . 1 1 1 1 . Reactor 3 | . . . . . . . . . 1 . . 1 . 1 Propulsion 30 | 2 . . . . 5 5 . . 10 . 3 3 . 2 Treads 16 | 2 . . . . 4 5 . . 1 . 3 . . 1 Leg 4 | . . . . . . . . . 4 . . . . . Wheel 4 | . . . . . . . . . 2 . . 2 . . Hover 2 | . . . . . . . . . . . . 1 . 1 Flight 4 | . . . . . 1 . . . 3 . . . . . Utility 44 | 2 3 . . . 9 10 2 . 11 3 3 . . 1 Device 16 | 1 1 . . . . 4 1 . 4 2 2 . . 1 Storage 4 | 1 2 . . . . . . . . . 1 . . . Processor 6 | . . . . . 3 1 1 . 1 . . . . . Hackware 4 | . . . . . . 1 . . 3 . . . . . Protection 14 | . . . . . 6 4 . . 3 1 . . . . Artifact . | . . . . . . . . . . . . . . . Weapon 41 | 3 2 . . 3 3 7 . . 6 4 6 7 . . Energy Gun 9 | 2 . . . . . . . . 2 1 3 1 . . Energy Cannon 2 | . . . . . . . . . . 1 . 1 . . Ballistic Gun 5 | 1 . . . . . . . . . . 1 3 . . Ballistic Cannon 13 | . 2 . . . 2 4 . . 1 2 1 1 . . Launcher 8 | . . . . 3 1 3 . . . . 1 . . . Special Weapon 1 | . . . . . . . . . 1 . . . . . Impact Weapon 2 | . . . . . . . . . 2 . . . . . Slashing Weapon 1 | . . . . . . . . . . . . 1 . . Piercing Weapon . | . . . . . . . . . . . . . . . Special Melee Weapon . | . . . . . . . . . . . . . . . Unidentified Prototypes 9 | . . . . . 1 3 . . 4 1 . . . . Parts Lost 71 | . 1 . . 1 4 8 . . 20 11 11 7 . 8 Power 10 | . . . . . . . . . 3 2 2 1 . 2 Propulsion 20 | . . . . . . 3 . . 7 2 3 2 . 3 Utility 24 | . 1 . . 1 2 4 . . 6 4 3 1 . 2 Weapon 17 | . . . . . 2 1 . . 4 3 3 3 . 1 Highest Loss Streak 10 | . 1 . . 1 2 4 . . 6 9 10 3 . 6 To Critical Strikes . | . . . . . . . . . . . . . . . Average Backups 13 | 1 11 17 17 19 18 18 16 16 10 4 5 5 5 4 Power . | . 1 2 2 2 2 . . . . . . . . . Propulsion 1 | . 2 3 3 3 3 2 1 1 . . . . . . Utility 5 | . 2 7 7 7 4 6 7 7 5 3 3 3 3 3 Weapon 4 | . 4 5 5 6 7 6 7 7 4 1 2 2 2 1 Tool/Special . | . . . . . . . . . . . . . . . Unused Backups 14 | . 1 . . 1 3 5 1 . 2 . . . . 1 Power 2 | . . . . . 1 1 . . . . . . . . Propulsion 2 | . . . . . 1 . . . 1 . . . . . Utility 7 | . 1 . . 1 1 1 1 . 1 . . . . 1 Weapon 3 | . . . . . . 3 . . . . . . . . Tool/Special . | . . . . . . . . . . . . . . . Average Slot Usage (%) 84 | . 97 100 100 98 98 99 100 100 77 75 47 36 27 26 Engine 4 | . 14 14 14 14 9 . . . 2 . 2 . . . Core 2 | . . . . . . 6 7 7 . 4 . 3 6 5 Treads 19 | . 28 28 28 28 27 29 30 30 7 . 5 . . 2 Leg 1 | . . . . . . . . . 6 10 . . . . Device 6 | . 8 14 14 12 . 4 4 . 3 6 12 5 5 6 Storage 6 | . 16 14 14 14 9 7 7 7 3 . 2 . . . Processor 10 | . . . . . 16 15 17 23 12 10 5 5 5 4 Hackware 6 | . . . . . . 6 7 7 14 16 9 1 . . Protection 5 | . . . . . 18 9 7 7 3 4 . . . . Ballistic Cannon 13 | . 25 28 28 26 17 13 14 10 8 8 3 . . . Peak Build Rating 73 | 7 10 10 11 12 29 45 45 42 61 73 70 56 39 55 Average Rating 34 | 5 8 10 10 11 22 38 42 40 47 63 45 39 35 37 On Entrance 25 | . 7 10 10 11 10 29 45 41 39 61 23 21 33 39 Naked Turns . | . . . . . . . . . . . . . . . Heaviest Build 78 | 15 56 53 53 54 62 72 65 65 78 45 44 47 39 40 Greatest Support 82 | 40 40 40 40 40 60 82 80 80 80 60 76 44 28 35 Greatest Overweight (x) 25 | . 1 1 1 1 1 1 . . 25 1 3 4 1 3 Average Overweight (x) . | . . 1 1 1 . . . . . . . . . . Largest Inventory Capacity 20 | 8 20 20 20 20 20 20 20 20 20 5 5 5 5 5 Average Capacity 15 | 7 17 20 20 20 20 20 20 20 13 5 5 5 5 5 Most Carried 20 | 3 17 17 18 20 20 20 18 17 16 5 5 5 5 5 Average Carried 13 | 1 11 17 17 19 19 19 17 17 10 4 5 4 5 4 Final Capacity 20 | 8 20 20 20 20 20 20 20 20 5 5 5 5 5 5 Final Carried 20 | 2 17 17 18 20 20 17 17 17 3 5 5 5 5 4 Class Distribution -------------------- 66% | Mutant 14% | Hacker-Mutant 9% | Hacker-Skirmisher 3% | Derelict-Gunner Dominant Class ---------------- Mutant | -10/Materials Mutant | -10/Mines Mutant | -10/Exiles Mutant | -9/Mines Mutant | -8/Materials Mutant | -7/Factory Mutant | -7/Lower Caves Mutant | -7/Lower Caves Hacker-Skirmisher | -6/Factory Hacker-Mutant | -5/Factory Hacker-Mutant | -4/Factory Derelict-Gunner | -4/Upper Caves Mutant | -4/Upper Caves Mutant | -3/Research Resources | -11 -10 -10 -10 -9 -8 -7 -7 -7 -6 -5 -4 -4 -4 -3 ----------- Run | Yrd Mat Min Exi Min Mat Fac Low Low Fac Fac Fac Upp Upp Res Matter Collected 4999 | 270 494 9 . 178 415 1226 139 228 1181 283 301 158 . 117 Remotely . | . . . . . . . . . . . . . . . Salvage Created 4536 | 108 386 . . 178 715 1133 76 119 1134 391 296 . . . Parts 268 | 7 33 . . 18 51 74 4 3 46 18 14 . . . Haulers Intercepted 7 | . 2 . . . 3 1 . . 1 . . . . . Recyclers Shooed 6 | . 2 . . . 1 1 . . 1 . 1 . . . Parts Field Recycled 29 | . . . . . . 29 . . . . . . . . Retrieved Matter 243 | . . . . . . 243 . . . . . . . . Parts Self-Destructed 5 | . . . . . . . 2 3 . . . . . . Prevented . | . . . . . . . . . . . . . . . Kills | -11 -10 -10 -10 -9 -8 -7 -7 -7 -6 -5 -4 -4 -4 -3 ------- Run | Yrd Mat Min Exi Min Mat Fac Low Low Fac Fac Fac Upp Upp Res Combat Hostiles Destroyed 119 | . 8 . . 10 20 31 3 7 25 12 3 . . . Melee 4 | . . . . . . . . . 1 3 . . . . Guns 6 | . 2 . . . . . . . 2 . 2 . . . Cannons 57 | . 6 . . . 16 12 1 1 12 8 1 . . . AOE 50 | . . . . 10 4 19 2 6 9 . . . . . Classes Destroyed 19 | 2 6 . . 1 3 3 . . 4 . . . . . Worker 8 | . . . . 1 . 3 . . 4 . . . . . Builder 15 | . 1 . . . 2 8 . . 4 . . . . . Tunneler 5 | 2 1 . . . . 1 . . . . 1 . . . Hauler 7 | . 2 . . . 3 1 . . 1 . . . . . Recycler 9 | 1 1 . . 1 . 4 . . 1 . 1 . . . Mechanic 1 | . . . . . . . . . 1 . . . . . Operator 3 | . 2 . . . . 1 . . . . . . . . Watcher 5 | . 1 . . . . 2 . . 2 . . . . . Swarmer 32 | . 3 . . 8 5 9 . 3 . 4 . . . . Saboteur 1 | . . . . . . . . . 1 . . . . . Grunt 42 | . 5 . . 2 7 12 3 4 7 2 . . . . Brawler 2 | . . . . . 1 . . . 1 . . . . . Duelist 1 | . . . . . . 1 . . . . . . . . Sentry 11 | . . . . . 6 1 . . 2 1 1 . . . Specialist 3 | . . . . . . . . . 3 . . . . . Hunter 9 | . . . . . 1 1 . . 6 1 . . . . Programmer 16 | . . . . . . 6 . . 4 4 2 . . . Heavy 1 | . . . . . . 1 . . . . . . . . Behemoth 1 | . . . . . . . . . 1 . . . . . Best Kill Streak 10 | 3 4 . . 5 6 10 3 4 10 3 2 . . . Combat Bots Only 8 | . 3 . . 4 5 4 3 4 8 3 2 . . . Max Kills in Single Turn 10 | 1 1 . . 5 5 10 2 3 7 1 1 . . . Gunslinging . | . . . . . . . . . . . . . . . Exploded 6 | . . . . 4 4 3 2 3 6 . . . . . Melee 1 | . . . . . . . . . 1 1 . . . . Uniques/NPCs Destroyed . | . . . . . . . . . . . . . . . Combat | -11 -10 -10 -10 -9 -8 -7 -7 -7 -6 -5 -4 -4 -4 -3 -------- Run | Yrd Mat Min Exi Min Mat Fac Low Low Fac Fac Fac Upp Upp Res Hostile Shots Fired 1030 | . 28 . . 14 62 138 7 27 331 90 108 69 . 156 Missed 323 | . 6 . . 5 24 50 5 7 105 26 26 17 . 52 Hits 707 | . 22 . . 9 38 88 2 20 226 64 82 52 . 104 Melee 10 | . . . . . . 8 . . 2 . . . . . Projectile 697 | . 22 . . 9 38 80 2 20 224 64 82 52 . 104 Critical Strikes 35 | . 1 . . . 1 5 . 1 10 2 6 3 . 6 Actively Blocked 23 | . . . . . . . . . 6 2 6 3 . 6 Part Disruptions 1 | . 1 . . . . . . . . . . . . . Damage Taken 14607 | . 340 . . 142 553 1972 60 357 4212 1822 1481 1258 . 2410 Core 3268 | . 41 . . 40 28 161 14 63 544 200 228 629 . 1320 Absorbed by Shields 356 | . . . . . . . . . . 80 276 . . . Redirected to Shielding 185 | . . . . . 54 131 . . . . . . . . Regen/Repaired (Parts) 83 | . . . . . . 83 . . . . . . . . Core Remaining (%) 66 | 100 . . . 67 94 . . 66 36 80 . . 25 . Volleys Fired 318 | 5 31 . . 6 42 72 4 11 83 35 23 6 . . Largest 3 | 1 2 . . 2 2 2 2 2 3 3 3 3 . . Hottest 264 | 20 63 . . 63 66 90 85 85 130 192 264 210 . . Shots Fired 571 | 5 62 . 1 11 83 133 5 14 128 73 43 13 . . Gun 66 | 5 8 . . . . . . . 17 4 25 7 . . Cannon 456 | . 54 . 1 3 82 113 4 11 98 69 15 6 . . Launcher 44 | . . . . 8 1 20 1 3 8 . 3 . . . Special 5 | . . . . . . . . . 5 . . . . . Kinetic 471 | 5 62 . 1 3 82 113 4 11 98 64 25 3 . . Thermal 51 | . . . . . . . . . 17 9 15 10 . . Explosive 44 | . . . . 8 1 20 1 3 8 . 3 . . . Electromagnetic . | . . . . . . . . . . . . . . . Robot Hit Streak 18 | 5 8 . . 4 18 10 4 7 12 13 13 5 . . Robot Miss Streak 5 | . 4 . . 2 5 3 1 3 3 3 3 1 . . Penetration Max . | . . . . . . . . . . . . . . . Secondary Targets . | . . . . . . . . . . . . . . . Shots Hit Robots 376 | 5 34 . . 4 59 91 4 11 78 47 28 15 . . Core Hits 313 | 4 18 . . 12 37 84 14 15 98 18 10 3 . . Critical Kills . | . . . . . . . . . . . . . . . Critical Parts Destroyed 4 | . . . . . . . . . 3 1 . . . . Critical Strikes 27 | . 1 . . . 4 4 . 1 7 7 1 2 . . Burn 2 | . . . . . . . . . 2 . . . . . Destroy 1 | . . . . . . . . . . . . 1 . . Blast 19 | . 1 . . . 4 4 . 1 2 6 1 . . . Smash 4 | . . . . . . . . . 3 1 . . . . Sever 1 | . . . . . . . . . . . . 1 . . Melee Attacks 35 | . . . . . . . . . 14 9 . 12 . . Impact 23 | . . . . . . . . . 14 9 . . . . Slashing 12 | . . . . . . . . . . . . 12 . . Piercing . | . . . . . . . . . . . . . . . Sneak Attacks 1 | . . . . . . . . . 1 . . . . . Combat Hostiles . | . . . . . . . . . . . . . . . Follow-up Attacks . | . . . . . . . . . . . . . . . Damage Inflicted 17258 | 63 634 . . 662 1480 4754 339 874 5333 1688 921 485 . 25 Guns 939 | 63 61 . . . . . . . 240 15 472 88 . . Cannons 8279 | . 573 . . 8 1239 1957 90 232 2304 1332 403 141 . . Explosions 7044 | . . . . 654 238 2770 249 642 2446 . 45 . . . Melee 919 | . . . . . . . . . 322 341 . 256 . . Ramming 77 | . . . . . 3 27 . . 21 . 1 . . 25 Kinetic 8459 | 63 634 . . 8 1239 1957 90 232 2304 1291 575 66 . . Thermal 1395 | . . . . 126 . 510 . . 240 56 300 163 . . Explosive 6408 | . . . . 528 238 2260 249 642 2446 . 45 . . . Electromagnetic . | . . . . . . . . . . . . . . . Impact 663 | . . . . . . . . . 322 341 . . . . Slashing 256 | . . . . . . . . . . . . 256 . . Piercing . | . . . . . . . . . . . . . . . Highest Corruption 12 | . 1 1 1 1 5 2 1 . 8 9 12 12 12 11 Average Corruption 4 | . 1 1 1 1 5 1 1 . 5 2 2 12 12 8 Corruption Purged 8 | . . . . . . 2 1 . 5 . . . . . Corruption Blocked . | . . . . . . . . . . . . . . . Effects 151 | . 4 1 5 8 15 12 3 . 44 9 2 42 2 4 Message Errors 30 | . 3 . . 1 3 3 . . 11 1 1 7 . . Matter Fused 45 | . 1 1 . 3 4 1 2 . 10 6 1 14 . 2 Heat Flow Errors 15 | . . . . . 1 1 1 . 5 . . 7 . . Energy Discharges 13 | . . . . . 1 3 . . 3 . . 4 1 1 Parts Rejected 1 | . . . . . . . . . . 1 . . . . Parts Fused 3 | . . . . . 1 . . . . . . 1 . 1 Data Loss (minor) 25 | . . . 3 2 4 4 . . 6 . . 5 1 . Data Loss (major) 8 | . . . . 1 . . . . 5 1 . 1 . . Misfires 4 | . . . 1 1 . . . . 2 . . . . . Alerts 5 | . . . 1 . 1 . . . 2 . . 1 . . Misdirections 2 | . . . . . . . . . . . . 2 . . Overload Shots . | . . . . . . . . . . . . . . . Overflow Damage 913 | . 22 . . 8 38 329 . 11 358 131 16 . . . Projectiles 319 | . 22 . . . . 87 . 11 153 30 16 . . . Explosions 310 | . . . . 8 38 242 . . 22 . . . . . Melee 284 | . . . . . . . . . 183 101 . . . . Knockbacks 43 | . 6 . . . 3 11 2 2 11 8 . . . . Impact 1 | . . . . . . . . . 1 . . . . . Kinetic 41 | . 6 . . . 3 11 2 2 9 8 . . . . Secondary 1 | . . . . . . . . . 1 . . . . . Self-Inflicted Damage 518 | . . . . 59 . 269 22 23 134 . . . . 11 Shots 13 | . . . . 2 . 5 1 1 4 . . . . . Rammed 12 | . . . . . 1 3 . . . . 1 . . 7 Targets Rammed 22 | . . . . . 1 4 . . 9 . 1 . . 7 Kicked 8 | . . . . . . . . . 8 . . . . . Crushed 2 | . . . . . . 1 . . 1 . . . . . Highest Temperature 441 | . 40 . . 21 128 161 272 22 305 297 441 382 . . Average Temperature 72 | . 8 . . 9 23 12 124 9 94 114 123 132 . . Received Heat Transfer 1755 | . 114 . . 15 189 159 18 72 762 60 111 162 . 93 Effects 2 | . . . . . . . . . 1 . . 1 . . Interference 1 | . . . . . . . . . 1 . . . . . Damage (minor) 1 | . . . . . . . . . . . . 1 . . Siege Activations . | . . . . . . . . . . . . . . . Martial Activations . | . . . . . . . . . . . . . . . Shielding Activations . | . . . . . . . . . . . . . . . Robots Disrupted . | . . . . . . . . . . . . . . . Combat Hostiles . | . . . . . . . . . . . . . . . Robots Corrupted 2 | . . . . . . . . . 1 1 . . . . Combat Hostiles 2 | . . . . . . . . . 1 1 . . . . Parts Fried 2 | . . . . . . . . . 2 . . . . . Impact Corruptions 7 | . . . . . . . . . 4 3 . . . . Robots Melted . | . . . . . . . . . . . . . . . Combat Hostiles . | . . . . . . . . . . . . . . . Parts Melted 4 | . . . . . . 1 . . 2 . 1 . . . Heat Transferred 2030 | . . . . 200 . 400 . . 800 75 370 185 . . Parts Sabotaged . | . . . . . . . . . . . . . . . Parts Stolen . | . . . . . . . . . . . . . . . Parts Stripped . | . . . . . . . . . . . . . . . Power Chain Reactions . | . . . . . . . . . . . . . . . Alert | -11 -10 -10 -10 -9 -8 -7 -7 -7 -6 -5 -4 -4 -4 -3 ------- Run | Yrd Mat Min Exi Min Mat Fac Low Low Fac Fac Fac Upp Upp Res Maximum Alert Level 3 | . . . . . 1 3 . . 1 1 . . . . Low Security (%) 67 | 100 100 100 . 100 61 44 . . 62 38 100 . . 100 Level 1 17 | . . . . . 38 3 . . 37 61 . . . . Level 2 7 | . . . . . . 27 . . . . . . . . Level 3 7 | . . . . . . 24 . . . . . . . . Level 4 . | . . . . . . . . . . . . . . . Level 5 . | . . . . . . . . . . . . . . . High Security . | . . . . . . . . . . . . . . . Max Security . | . . . . . . . . . . . . . . . Peak Influence 745 | 5 75 . . 194 281 745 . . 388 290 84 . . 55 Initial 115 | . . . . . 68 9 . . 115 60 84 . . . Average 175 | 1 20 . . 37 141 355 . . 179 184 19 . . 5 Influence Increases 4615 | 15 288 . . 330 588 1297 70 175 1035 549 118 75 . 75 Destroy 0b10 Robot/C 2440 | . 160 . . 200 400 620 60 140 560 240 60 . . . Destroy 0b10 Robot/NC 265 | 15 40 . . 10 25 100 . . 65 . 10 . . . Destroy Leader 564 | . 46 . . 30 96 156 10 20 136 50 20 . . . Allied During Kill 12 | . . . . . . . . . 12 . . . . . Successful Hack 121 | . 24 . . . 25 44 . . 28 . . . . . Disable Machine 555 | . 15 . . 15 30 255 . . 90 150 . . . . Destroy Structure 373 | . 3 . . 60 12 92 . . 114 64 28 . . . Partial Spotted 30 | . . . . . . 15 . . 15 . . . . . Lose Combat Pursuer 255 | . . . . 15 . 15 . 15 15 45 . 75 . 75 Influence Decreases 4590 | 15 286 2 . 154 744 592 709 77 1095 500 291 66 9 50 Entered New Map 631 | . . 2 . . 108 11 269 17 69 64 89 . 2 . Time Decay 2983 | 15 276 . . 144 446 501 440 60 496 326 184 58 7 30 Lost Part 486 | . 10 . . 10 40 80 . . 190 110 18 8 . 20 Lost Ally 40 | . . . . . . . . . 40 . . . . . Purge Threat 450 | . . . . . 150 . . . 300 . . . . . Squads Dispatched 36 | . 2 . . . 4 11 . . 12 5 1 . . 1 Investigation 6 | . 1 . . . 1 . . . 2 2 . . . . Extermination 16 | . . . . . . 7 . . 5 2 1 . . 1 Reinforcement 11 | . 1 . . . . 4 . . 5 1 . . . . Assault . | . . . . . . . . . . . . . . . Garrison 3 | . . . . . 3 . . . . . . . . . Intercept . | . . . . . . . . . . . . . . . Searches Triggered . | . . . . . . . . . . . . . . . Construction Impeded . | . . . . . . . . . . . . . . . Haulers Reinforced 2 | . . . . . . . . . 2 . . . . . Active Scanning Responses . | . . . . . . . . . . . . . . . Cargo Convoy Interrupts 3 | . . . . . . 1 . . 1 . . . . 1 Stealth | -11 -10 -10 -10 -9 -8 -7 -7 -7 -6 -5 -4 -4 -4 -3 --------- Run | Yrd Mat Min Exi Min Mat Fac Low Low Fac Fac Fac Upp Upp Res Distress Signals 4 | . 1 . . . 1 . . . 1 . . . . 1 Communications Jammed . | . . . . . . . . . . . . . . . Distress Signals . | . . . . . . . . . . . . . . . Times Spotted 218 | . 12 . . 7 23 41 3 8 57 20 11 5 . 31 Peak Tracking Total 26 | . 3 . . 5 5 4 3 4 11 4 6 2 . 26 Tactical Retreats 14 | . . . . 1 . 1 . 1 1 2 . 5 . 3 Traps | -11 -10 -10 -10 -9 -8 -7 -7 -7 -6 -5 -4 -4 -4 -3 ------- Run | Yrd Mat Min Exi Min Mat Fac Low Low Fac Fac Fac Upp Upp Res Traps Triggered 14 | . 3 . . . 1 4 . . 4 . 2 . . . Indirectly . | . . . . . . . . . . . . . . . Trap Hack Attempts . | . . . . . . . . . . . . . . . Triggered . | . . . . . . . . . . . . . . . Disarmed . | . . . . . . . . . . . . . . . Reprogrammed . | . . . . . . . . . . . . . . . Reused . | . . . . . . . . . . . . . . . Traps Extracted . | . . . . . . . . . . . . . . . Installed . | . . . . . . . . . . . . . . . Triggered . | . . . . . . . . . . . . . . . Machines | -11 -10 -10 -10 -9 -8 -7 -7 -7 -6 -5 -4 -4 -4 -3 ---------- Run | Yrd Mat Min Exi Min Mat Fac Low Low Fac Fac Fac Upp Upp Res Machines Disabled 37 | . 1 . . 1 2 17 . . 6 10 . . . . Max in Single Turn 16 | . 1 . . 1 1 16 . . 1 7 . . . . Garrison Access 2 | . . . . . 1 . . . . 1 . . . . Machines Repaired . | . . . . . . . . . . . . . . . Machines Dismantled . | . . . . . . . . . . . . . . . Machines Sabotaged . | . . . . . . . . . . . . . . . Overloaded Fab Kills . | . . . . . . . . . . . . . . . Hacking | -11 -10 -10 -10 -9 -8 -7 -7 -7 -6 -5 -4 -4 -4 -3 --------- Run | Yrd Mat Min Exi Min Mat Fac Low Low Fac Fac Fac Upp Upp Res Machines Accessed 41 | . 7 . 1 . 8 10 . . 9 3 . 2 . 1 Terminals 22 | . 5 . . . 5 6 . . 5 1 . . . . Fabricators 2 | . . . . . . 1 . . . 1 . . . . Repair Stations 3 | . 1 . . . . 1 . . 1 . . . . . Recycling Units 5 | . 1 . . . 1 1 . . 2 . . . . . Scanalyzers 1 | . . . . . 1 . . . . . . . . . Garrison Access 5 | . . . . . 1 1 . . 1 1 . . . 1 Total Hacks 101 | . 18 . 1 . 24 22 . . 23 9 . 2 . 2 Successful 54 | . 8 . 1 . 15 10 . . 10 8 . 2 . . Failed 47 | . 10 . . . 9 12 . . 13 1 . . . 2 Catastrophic 2 | . . . . . 1 . . . 1 . . . . . Database Lockouts . | . . . . . . . . . . . . . . . Manual 52 | . 10 . 1 . 15 12 . . 12 2 . . . . Terminals 63 | . 13 . . . 17 15 . . 13 5 . . . . Fabricators 4 | . . . . . . 1 . . . 3 . . . . Repair Stations 8 | . 3 . . . . 2 . . 3 . . . . . Recycling Units 11 | . 2 . . . 3 2 . . 4 . . . . . Scanalyzers 3 | . . . . . 3 . . . . . . . . . Garrison Access 9 | . . . . . 1 2 . . 3 1 . . . 2 Terminal Hacks 28 | . 3 . 1 . 7 5 . . 6 4 . 2 . . Record 4 | . . . . . . 1 . . 1 2 . . . . Robot Analysis 5 | . 1 . . . 3 . . . 1 . . . . . Open Door 2 | . . . . . . . . . . . . 2 . . Level Access Points 2 | . . . . . . . . . 1 1 . . . . Terminal Index 1 | . . . . . . 1 . . . . . . . . Alert Level 3 | . . . . . 1 . . . 1 1 . . . . Unreport Threat 3 | . . . . . 1 . . . 2 . . . . . Transport Status 1 | . . . . . 1 . . . . . . . . . Recall Extermination 1 | . . . . . . 1 . . . . . . . . Hauler Manifests 2 | . 1 . . . 1 . . . . . . . . . Zone Layout 3 | . 1 . . . . 2 . . . . . . . . Proto ID Catalog 1 | . . . 1 . . . . . . . . . . . Fabricator Hacks 4 | . . . . . . 1 . . . 3 . . . . Network Status 2 | . . . . . . 1 . . . 1 . . . . Load Schematic 1 | . . . . . . . . . . 1 . . . . Build 1 | . . . . . . . . . . 1 . . . . Repair Station Hacks 4 | . 1 . . . . 2 . . 1 . . . . . Scan Component 3 | . 1 . . . . 1 . . 1 . . . . . Repair 1 | . . . . . . 1 . . . . . . . . Recycling Unit Hacks 4 | . 2 . . . . . . . 2 . . . . . Retrieve Matter 2 | . 1 . . . . . . . 1 . . . . . Retrieve Components 2 | . 1 . . . . . . . 1 . . . . . Scanalyzer 3 | . . . . . 3 . . . . . . . . . Insert Component 1 | . . . . . 1 . . . . . . . . . Analyze 2 | . . . . . 2 . . . . . . . . . Garrison Access Hacks 2 | . . . . . 1 . . . . 1 . . . . Seal Access 2 | . . . . . 1 . . . . 1 . . . . Unauthorized Hacks 9 | . 2 . . . 4 2 . . 1 . . . . . Terminals 9 | . 2 . . . 4 2 . . 1 . . . . . Botnet 9 | . 2 . . . 4 2 . . 1 . . . . . Fabricators . | . . . . . . . . . . . . . . . Repair Stations . | . . . . . . . . . . . . . . . Recycling Units . | . . . . . . . . . . . . . . . Scanalyzers . | . . . . . . . . . . . . . . . Garrison Access . | . . . . . . . . . . . . . . . Data Cores Recovered 2 | . 1 . . . . 1 . . . . . . . . Used 1 | . . . . . . 1 . . . . . . . . Hacking Detections 31 | . 6 . . . 6 8 . . 8 2 . . . 1 Full Trace Events 7 | . 2 . . . 2 . . . 1 2 . . . . Feedback Events . | . . . . . . . . . . . . . . . Feedback Blocked . | . . . . . . . . . . . . . . . Robot Schematics Acquired . | . . . . . . . . . . . . . . . Robots Built . | . . . . . . . . . . . . . . . Authchips . | . . . . . . . . . . . . . . . Time . | . . . . . . . . . . . . . . . Total Robot Build Rating . | . . . . . . . . . . . . . . . Part Schematics Acquired 1 | . . . . . 1 . . . . . . . . . Parts Built 1 | . . . . . . . . . . 1 . . . . Authchips . | . . . . . . . . . . . . . . . Time 62 | . . . . . . . . . . 62 . . . . Total Part Build Rating 2 | . . . . . . . . . . 2 . . . . Parts Repaired 1 | . . . . . . 1 . . . . . . . . Time 32 | . . . . . . 32 . . . . . . . . Parts Recycled . | . . . . . . . . . . . . . . . Recycled Matter . | . . . . . . . . . . . . . . . Retrieved Matter 38 | . 31 . . . . . . . 7 . . . . . Retrieved Components 18 | . 9 . . . . . . . 9 . . . . . Parts Scanalyzed 1 | . . . . . 1 . . . . . . . . . Part Schematics Acquired 1 | . . . . . 1 . . . . . . . . . Parts Damaged . | . . . . . . . . . . . . . . . Bothacking | -11 -10 -10 -10 -9 -8 -7 -7 -7 -6 -5 -4 -4 -4 -3 ------------ Run | Yrd Mat Min Exi Min Mat Fac Low Low Fac Fac Fac Upp Upp Res Used RIF Installer . | . . . . . . . . . . . . . . . Robots Hacked . | . . . . . . . . . . . . . . . Non-combat . | . . . . . . . . . . . . . . . Combat . | . . . . . . . . . . . . . . . Robot Hacks Applied . | . . . . . . . . . . . . . . . Relay Couplers Released . | . . . . . . . . . . . . . . . Fabnet Peak Effective % . | . . . . . . . . . . . . . . . Robots Rewired . | . . . . . . . . . . . . . . . Allies Hacked 1 | . . . . . . . . . 1 . . . . . Hacks Repelled . | . . . . . . . . . . . . . . . Allies | -11 -10 -10 -10 -9 -8 -7 -7 -7 -6 -5 -4 -4 -4 -3 -------- Run | Yrd Mat Min Exi Min Mat Fac Low Low Fac Fac Fac Upp Upp Res Total Allies 4 | . . . . . . . . . 4 . . . . . Largest Group 3 | . . . . . . . . . 3 . . . . . Highest-Rated Group 83 | . . . . . . . . . 83 . . . . . Highest-Rated Ally 30 | . . . . . . . . . 30 . . . . . Total Orders 1 | . . . . . . . . . 1 . . . . . EXPLORE 1 | . . . . . . . . . 1 . . . . . Ally Attacks 27 | . . . . . . . . . 27 . . . . . Total Damage 567 | . . . . . . . . . 567 . . . . . Kills 3 | . . . . . . . . . 3 . . . . . Allies Corrupted . | . . . . . . . . . . . . . . . Allies Melted . | . . . . . . . . . . . . . . . Field Lobotomies 4 | . . . . . . . . . 4 . . . . . Intel | -11 -10 -10 -10 -9 -8 -7 -7 -7 -6 -5 -4 -4 -4 -3 ------- Run | Yrd Mat Min Exi Min Mat Fac Low Low Fac Fac Fac Upp Upp Res Active Infowar (turns) 9553 | 19 747 267 496 880 901 3052 1098 136 1411 546 . . . . Optics 7144 | . . . . . 901 3052 1098 136 1411 546 . . . . Seismic 2409 | 19 747 267 496 880 . . . . . . . . . . ECM 2 | . . . . . . . . . 2 . . . . . Robot Analysis Total 5 | . 1 . . . 3 . . . 1 . . . . . Derelict Logs Recovered 5 | . . . . 2 . . 1 . . . . 2 . . Drone Launches 2 | . . . . . . . . . 2 . . . . . Drone Recoveries . | . . . . . . . . . . . . . . . Exploration | -11 -10 -10 -10 -9 -8 -7 -7 -7 -6 -5 -4 -4 -4 -3 ------------- Run | Yrd Mat Min Exi Min Mat Fac Low Low Fac Fac Fac Upp Upp Res Turns Passed 13527 | 119 1166 267 496 951 1112 3052 1098 136 2375 736 601 1038 72 308 Spaces Moved 7271 | 62 473 112 207 380 482 1572 666 66 1354 364 274 918 68 273 Core 466 | 4 . . . . . . . . 12 13 37 318 . 82 Treads 4658 | 58 473 112 207 380 482 1572 666 66 361 . 237 . . 44 Legs 987 | . . . . . . . . . 636 351 . . . . Wheels 775 | . . . . . . . . . 9 . . 598 68 100 Hover 49 | . . . . . . . . . . . . 2 . 47 Flight 336 | . . . . . . . . . 336 . . . . . Fastest Speed 29 | 50 160 240 240 240 160 158 162 162 29 100 100 50 100 50 Average Speed 159 | 152 220 240 240 240 192 159 162 162 139 138 162 106 104 106 Slowest Speed 1300 | 160 240 240 240 240 240 238 162 162 1300 140 240 250 115 225 Overloaded Moves . | . . . . . . . . . . . . . . . Propulsion Burnouts . | . . . . . . . . . . . . . . . Robots Hopped . | . . . . . . . . . . . . . . . Potential Cave-ins 4 | . . . . . . . . . . 4 . . . . Cave-ins Triggered 1 | . . . . . . . . . . 1 . . . . Exploration Rate (%) 40 | 4 75 21 61 85 50 37 84 11 34 15 14 89 15 15 Regions Visited 14 Branch Regions 7 Pre-discovered Areas 2 | . . 1 . 1 . . . . . . . . . . Known Exits Taken 4 | . . . . . . . 1 1 1 1 . . . . Unknown Exits Taken 10 | 1 1 1 1 1 1 1 . . . . 1 1 1 . Scrap Searched 10 | . . 2 . 4 . . 2 . . . . 2 . . Spaces Dug 26 | . . . . . . . . . 11 13 . 2 . . Terrain Destroyed 455 | . 1 . . 83 12 105 37 46 117 37 15 2 . . Melee 3 | . . . . . . . . . 3 . . . . . Projectile 58 | . 1 . . . 2 6 . 1 18 24 4 2 . . AOE 394 | . . . . 83 10 99 37 45 96 13 11 . . . Terrain Rammed . | . . . . . . . . . . . . . . . Walls Destroyed . | . . . . . . . . . . . . . . . Machines Disabled . | . . . . . . . . . . . . . . . Actions | -11 -10 -10 -10 -9 -8 -7 -7 -7 -6 -5 -4 -4 -4 -3 --------- Run | Yrd Mat Min Exi Min Mat Fac Low Low Fac Fac Fac Upp Upp Res Total 8526 | 78 536 111 207 409 589 1980 678 79 1653 510 385 955 68 288 Wait 523 | 1 5 . . 12 18 236 2 . 93 88 67 . . 1 Move 7257 | 61 472 111 206 379 481 1571 665 65 1353 363 273 917 67 273 Hop . | . . . . . . . . . . . . . . . Pick Up 63 | 2 17 . 1 4 12 15 2 . 7 2 . 1 . . Fast Attach 93 | 7 2 . . . 4 20 . . 22 8 13 12 1 4 Attach 39 | 1 . . . . 9 12 . . 16 . . . . 1 Detach 12 | 1 . . . . . 6 . . 3 . . 2 . . Swap 56 | . 4 . . 6 9 25 4 3 3 1 1 . . . Drop 68 | . 5 . . 2 13 19 1 . 14 4 3 5 . 2 Fire 318 | 5 31 . . 6 42 72 4 11 83 35 23 6 . . Melee 35 | . . . . . . . . . 14 9 . 12 . . Ram 7 | . . . . . . . . . . . . . . 7 Kick 8 | . . . . . . . . . 8 . . . . . Crush 7 | . . . . . 1 4 . . 1 . 1 . . . Escape Stasis 40 | . . . . . . . . . 36 . 4 . . . Rewire . | . . . . . . . . . . . . . . . Trap . | . . . . . . . . . . . . . . . Miscellaneous . | . . . . . . . . . . . . . . . Route ------- -11/Scrapyard -10/Materials (discovered 3 exits: [*Mat x2] / [*Min]) -10/Mines -10/Exiles -9/Mines -8/Materials (discovered 2 exits: *Fac x2) -7/Factory -7/Lower Caves -7/Lower Caves -6/Factory (discovered 4 exits: *Fac x4) -5/Factory (discovered 4 exits: *Fac x4) -4/Factory -4/Upper Caves -4/Upper Caves -3/Research History --------- Turn | Location | Event 26 | -11/Scrapyard | Discovered new exit (range 15) 120 | -11/Scrapyard | Entered Materials 333 | -10/Materials | Build established: Mutant 375 | -10/Materials | Discovered new exit (range 15) 797 | -10/Materials | Discovered new exit (range 15) 1027 | -10/Materials | Discovered new exit (range 16) 1286 | -10/Materials | Entered Mines 1335 | -10/Mines | Learned location of Storage (-9) 1543 | -10/Mines | Deemed a non-threat by the Exiles lab entrance 1543 | -10/Mines | Discovered new exit (range 5) 1553 | -10/Mines | Entered Exiles 1609 | -10/Exiles | Met 8R-AWN 1654 | -10/Exiles | Met EX-HEX 1719 | -10/Exiles | Met EX-BIN 1748 | -10/Exiles | Aligned with FarCom system 1750 | -10/Exiles | Given EX-Vault access code 1805 | -10/Exiles | Opened EX-Vault 1822 | -10/Exiles | Found Field Lobotomy Kit 1866 | -10/Exiles | Warned to stay clear of 0b10 Research branches 1941 | -10/Exiles | Met EX-DEC 2022 | -10/Exiles | Discovered new exit (range 14) 2049 | -10/Exiles | Left Exiles lab with Field Lobotomy Kit 2049 | -10/Exiles | Entered Mines 2079 | -9/Mines | Learned Materials garrison access intel 2094 | -9/Mines | Learned location of Zion (-7) 2230 | -9/Mines | A weapon hastily lodged in a ceiling crevice suddenly fell to the ground 2921 | -9/Mines | Discovered new exit (range 9) 3000 | -9/Mines | Entered Materials 3000 | -8/Materials | Evolved 4 slots: Propulsion x1, Utility x3 3001 | -8/Materials | Loaded intel: 1 garrison access location 3472 | -8/Materials | Discovered new exit (range 12) 3780 | -8/Materials | Discovered new exit (range 12) 4112 | -8/Materials | Entered Factory 4112 | -7/Factory | Evolved 2 slots: Propulsion x1, Utility x1 5008 | -7/Factory | Discovered new exit (range 14) 5107 | -7/Factory | Repaired Imp. Light Cannon 5366 | -7/Factory | Cargo convoy interrupted 5495 | -7/Factory | Lost 4 parts (2n2u) 6365 | -7/Factory | Found Prototype Launcher 6375 | -7/Factory | Identified Rocket Array 6391 | -7/Factory | Found Rocket Array 7164 | -7/Factory | Lost 4 parts (1n2u1w) 7164 | -7/Factory | Entered Lower Caves 7298 | -7/Lower Caves | Encountered a Warlord checkpoint 7315 | -7/Lower Caves | Learned Factory terminal intel 7903 | -7/Lower Caves | Discovered new exit (range 8) 7923 | -7/Lower Caves | Identified exit to Lower Caves 8262 | -7/Lower Caves | Entered another Lower Caves area 8349 | -7/Lower Caves | Discovered new exit (range 18) 8397 | -7/Lower Caves | Identified exit to Factory 8398 | -7/Lower Caves | Entered Factory 8398 | -6/Factory | Evolved 2 slots: Utility x1, Weapon x1 8399 | -6/Factory | Loaded intel: 25 terminal locations 8757 | -6/Factory | Build established: Hacker-Skirmisher 9181 | -6/Factory | Lost 5 parts (3n2u) 9470 | -6/Factory | Spotted B-75 Beast 9552 | -6/Factory | Destroyed B-75 Beast 9663 | -6/Factory | Cargo convoy interrupted 9689 | -6/Factory | Assimilated G-50 Soldier with FLK Orb 9692 | -6/Factory | Destroyed 8 combat bots 9692 | -6/Factory | Assimilated L-41 Fighter with FLK Orb 9695 | -6/Factory | Assimilated G-50 Soldier with FLK Orb 9703 | -6/Factory | Assimilated G-50 Soldier with FLK Orb 9736 | -6/Factory | Lost 6 parts (1p2n1u2w) 10328 | -6/Factory | Build established: Hacker-Mutant 10505 | -6/Factory | Identified exit to Factory 10652 | -6/Factory | Core integrity fell below 50% 10773 | -6/Factory | Entered another Factory area 10773 | -5/Factory | Evolved 2 slots: Power x1, Utility x1 10949 | -5/Factory | Identified exit to Factory 11145 | -5/Factory | Fabricated Rocket Launcher? 11492 | -5/Factory | Crushed by falling debris 11509 | -5/Factory | Entered another Factory area 11509 | -4/Factory | Evolved 2 slots: Propulsion x1, Utility x1 11526 | -4/Factory | Lost 9 parts (1p2n3u3w) 11750 | -4/Factory | Found Quantum Capacitor 12076 | -4/Factory | Discovered new exit (range 14) 12101 | -4/Factory | System corruption reached 10% 12110 | -4/Factory | Entered Upper Caves 12139 | -4/Upper Caves | Lost 10 parts (1p3n3u3w) 12317 | -4/Upper Caves | Spotted B-86 Titan 12410 | -4/Upper Caves | Build established: Mutant 12419 | -4/Upper Caves | Attracted the attention of an 0b10 checkpoint 12436 | -4/Upper Caves | Core integrity fell below 50% 12451 | -4/Upper Caves | Found DCF Scrap (16 items) 12503 | -4/Upper Caves | Learned Research terminal intel 12592 | -4/Upper Caves | Learned location of 1 exit from Proximity Caves 12755 | -4/Upper Caves | Build established: Derelict-Gunner 12986 | -4/Upper Caves | Lost 3 parts (1p1n1w) 13143 | -4/Upper Caves | Discovered new exit (range 6) 13148 | -4/Upper Caves | Entered another Upper Caves area 13213 | -4/Upper Caves | Discovered new exit (range 6) 13220 | -4/Upper Caves | Entered Research 13220 | -3/Research | Evolved 2 slots: Propulsion x1, Utility x1 13221 | -3/Research | Loaded intel: 22 terminal locations 13305 | -3/Research | Build established: Mutant 13455 | -3/Research | System corruption reached 10% 13469 | -3/Research | Core integrity fell below 50% 13482 | -3/Research | Lost 6 parts (2p2n1u1w) 13526 | -3/Research | Spotted Striker 13526 | -3/Research | Spotted Executioner 13527 | -3/Research | Cargo convoy interrupted 13528 | -3/Research | Core integrity fell below 20% 13528 | -3/Research | Destroyed by G-67 Veteran with Plasma Rifle Last Messages --------------- 13526_ I-47 Archangel unfolds itself. 13526_ Antigrav Array destroyed. 13526_ K-01 Serf collects debris. 13526_ C-30 ARC bursts open, deploying its payload. 13526_ P-80 Master unfolds itself. 13526_ H-77 Assassin unfolds itself. 13526_ Executioner unfolds itself. 13526_ H-77 Assassin unfolds itself. 13526_ Penetrated by Slug. 13526_ Slug penetrates Wall. 13527_ System corrupted: Matter fused (-10). 13527_ ALERT: Cargo convoy interrupted, initiating access lockdown. 13527_ Slammed into G-73 Enforcer. 13527_ K-01 Serf collects debris. 13527_ Slug penetrates A-27 Freighter. 13527_ Penetrated by Slug. 13528_ Slammed into G-73 Enforcer. 13528_ Slug penetrates Wall. 13528_ Penetrated by Slug. 13528_ Slug penetrates Wall. Map ----- +----------------------------------------------------+ | ?????????????????????# """ "" !################ | | ?????????????????????# """ "" # | | ?????????????????????# "" + | | ?????????????????????# Y" # ^ | | ?????????????????????# """ "" # | | ?????????????????????# """ "" # #########+###? | | ?????????????????????# """ "" # #????????????? | | ?????????????????????# # #???????????#? | | ?????????????????????# # #??"""""????# | | ?????????????????????####/######### #??""T""????# | | ????????????????????????# ## ?# #???????????# | | ????????????????????????#p## # #???????????# | | ????????????????????????# ## # #???????????#! | | ??????????????b?????????# ## + #??########## | | ?????????????g??????????#p## # #??# ## | | ?????????????g??????????# ## # #### # | | ??????????????g?????????# #######?# / # | | ????????????????????????# #?????###/#### # | | ????????????????????????# #?????# # / | | ???????????????????p????#g#?????# # # | | ????????????????????????#g#?????# # ! # | | ????????????????????????#s#?????# # ! # | | ????????????????????????#p#?????# ! # ! # | | ?????????????i????# #####g#?????# ########## | | ??????????????????#kiEApgg#?????########????????# | | ??????????????????#%hxhgg@#?????????????????????# | | ??????????? K h g#?????????????????????# | | ?????????? i h k #?????????????????????# | | ??????????? R %#??????????????""?????# | | ??????????? w #????T????????"""?????# | | ???????????? ?????????????"T??????# | | ???????????? ?????????????"""?????? | | ???????????? k ??????????????""?????? | | ????????????? ?????????????????????? | | ????????????? ??????????????????????? | | ??????????????#### T#####+#??????????????????????? | | ?????????????????###?????????????????????????????? | | ?????????????????????????????????????????????????? | | ?????????????????????????????????????????????????? | | ?????????????????????????????????????????????????? | | ?????????????????????????????????????????????????? | | ???????????????T?????????????????????????????????? | | ??????????????""?????????????????????????????????? | | ?????????????????????????????????????????????????? | | ?????????????????????????????????????????????????? | | ?????????????????????????????????????????????????? | | ?????????????????????????????????????????????????? | | ?????????????????????????????????????????????????? | | ?????????????????????????????????????????????????? | | ?????????????????????????????????????????????????? | +----------------------------------------------------+ Best States ------------- Heat Dissipation 46 Energy Generation 35 Energy Capacity 530 Matter Stores 496 Matter Capacity 500 Sight Range 22 Terrain Scan Density 10 Armor Coverage 600 Resistance: EX 50 Propulsion Shielding 66 Weapon Shielding 66 Evasion (%) 64 Targeting Accuracy 13 Recoil Reduction 8 Offensive Hacking 30 Item Schematics ----------------- Rocket Launcher | -8/Materials | Scanalyzed Robot Schematics ------------------ None Fabricated ------------ Rocket Launcher | x1 | -5/Factory Repaired ---------- Imp. Light Cannon | 38% | -7/Factory Alien Tech Used ----------------- None Achievements -------------- Dramatic Entrance Challenges ------------ None Game ------ Seed ThrusterLightpackArticulator Manual? 0 Play Time 01:56:21 Cumulative 47.6 hours Start 2025.05.31 @ 10:17:13 End 2025.05.31 @ 12:24:27 Sessions 1 Manual Loads 0 Difficulty Rogue Special Mode None Game No. 54 Rogue 54 Adventurer 0 Explorer 0 Win Type - Total 0 Types 0/0/0/0/0/0/0/0/0/0 Lore% 27 Gallery% 34 Achievement% 37 Wizard Run 0 Options --------- Layout 0 ASCII 0 Keyboard 0 Movement Numpad Keybinds 0 Fullscreen 1 Font 18/SmallcapsGlow Map View 76x50 Zoom Use 0% Tactical HUD 1 Map Filters NONE Filters NONE Steam 1 RUN: ef4e1780-78dc-4f95-a891-01d91a6da68a